bitfinex-derivatives/quotes_BTCF0:USTF0_20250630
["timestamp","ask_amount","ask_price","bid_price","bid_amount"]
[1751296790016,0.13036088,106810.0,106800.0,1.77463093]
[1751296790223,0.13036088,106810.0,106800.0,1.96185263]
[1751296791310,0.13036088,106810.0,106800.0,2.28298645]
[1751296791512,0.187206,106810.0,106800.0,2.09370928]
[1751296791719,0.187206,106810.0,106800.0,3.15470428]
[1751296792514,0.1872004,106820.0,106800.0,3.31390444]
[1751296792711,0.3743867,106820.0,106810.0,0.53333658]
[1751296792911,0.3743867,106820.0,106810.0,0.96294127]
[1751296793108,0.3743867,106820.0,106810.0,0.60214127]
[1751296793311,0.3743867,106820.0,106810.0,0.60213802]
[1751296793508,0.3743867,106820.0,106810.0,0.31730144]
[1751296794410,0.69552052,106820.0,106810.0,0.21960144]
[1751296794611,1.58132052,106820.0,106810.0,1.04139001]
[1751296794806,1.58132052,106820.0,106810.0,0.29443001]
[1751296795113,1.58132052,106820.0,106810.0,0.14443001]
[1751296795308,1.58132052,106820.0,106810.0,0.89439001]
[1751296796115,1.58132052,106820.0,106810.0,0.14742751]
[1751296796316,1.58132052,106820.0,106810.0,0.89434751]
[1751296796518,1.58132052,106820.0,106810.0,0.89434954]
[1751296797218,2.08132052,106820.0,106810.0,0.89434954]
[1751296800216,2.08132052,106820.0,106810.0,0.14742954]
[1751296800419,2.08132052,106820.0,106810.0,0.74670954]
[1751296801326,2.08132052,106820.0,106810.0,0.14742954]
[1751296801510,2.08132052,106820.0,106810.0,0.12872396]
[1751296802827,2.08132052,106820.0,106810.0,0.11002164]
[1751296803921,2.08132052,106820.0,106810.0,0.12872396]
[1751296804223,2.08132052,106820.0,106810.0,0.08847874]
[1751296804523,2.08132052,106820.0,106810.0,0.10311426]
[1751296805722,2.08132052,106820.0,106810.0,0.12872642]
[1751296805922,2.08132052,106820.0,106810.0,0.08847874]
[1751296806323,2.08132052,106820.0,106810.0,0.1287265]
[1751296806520,0.1872037,106810.0,106800.0,0.22719247]
[1751296806722,1.29513752,106810.0,106800.0,0.82639247]
[1751296807120,1.29513752,106810.0,106800.0,0.07955247]
[1751296807329,1.29513752,106810.0,106800.0,0.67871247]
[1751296807624,1.29513752,106810.0,106800.0,0.0047239]
[1751296807825,0.9740037,106810.0,106800.0,0.0047239]
[1751296808127,1.29513752,106810.0,106800.0,0.0047239]
[1751296808328,1.29513752,106810.0,106800.0,0.07955247]
[1751296809815,1.29513752,106810.0,106800.0,0.08255247]
[1751296810015,1.79513752,106810.0,106800.0,0.08255247]
[1751296815229,1.0977037,106810.0,106800.0,0.08255247]
[1751296815419,1.50883752,106810.0,106800.0,0.96695247]
[1751296816129,1.84433752,106810.0,106800.0,0.96695247]
[1751296816325,1.84433752,106810.0,106800.0,0.08255247]
[1751296816530,1.34433752,106810.0,106800.0,0.6067239]
[1751296817228,1.34433752,106810.0,106800.0,0.68155247]
[1751296818331,1.84433752,106810.0,106800.0,0.68155247]
[1751296818528,1.84433752,106810.0,106800.0,0.75564206]
[1751296819028,1.84433752,106810.0,106800.0,0.15664206]
[1751296820724,1.84433752,106810.0,106800.0,0.15664249]
[1751296822733,2.16547134,106810.0,106800.0,0.15664249]
[1751296822935,1.84433752,106810.0,106800.0,0.15664249]
[1751296823836,1.84433752,106810.0,106800.0,0.14566573]
[1751296824033,1.84433752,106810.0,106800.0,0.15664341]
[1751296824636,1.84433752,106810.0,106800.0,0.08181484]
[1751296825228,1.84433752,106810.0,106800.0,0.07083716]
[1751296825434,1.84433752,106810.0,106800.0,0.08181494]
[1751296825734,0.1872383,106790.0,106780.0,0.14526649]
[1751296825924,1.17917212,106790.0,106780.0,0.98556649]
[1751296827433,1.17917212,106790.0,106780.0,0.99256649]
[1751296827829,1.17917212,106790.0,106780.0,0.24636649]
[1751296828030,1.17917212,106790.0,106780.0,0.99252649]
[1751296828236,1.22997212,106790.0,106780.0,0.99252649]
[1751296828436,1.55997212,106790.0,106780.0,0.89984218]
[1751296828838,1.22997212,106790.0,106780.0,0.89984218]
[1751296829437,1.23949771,106790.0,106780.0,0.89984218]
[1751296831243,1.23949771,106790.0,106780.0,0.15368218]
[1751296831437,1.56949771,106790.0,106780.0,0.89984218]
[1751296832236,1.22997212,106790.0,106780.0,0.99252649]
[1751296832541,0.86917212,106790.0,106780.0,0.99252649]
[1751296832932,0.86917212,106790.0,106780.0,0.89984218]
[1751296833343,0.50837212,106790.0,106780.0,0.89984218]
[1751296833541,0.86917212,106790.0,106780.0,0.89984218]
[1751296833740,0.86917212,106790.0,106780.0,0.99252649]
[1751296833946,0.86917212,106790.0,106780.0,0.15368218]
[1751296834137,0.86917212,106790.0,106780.0,0.99244649]
[1751296835644,0.86917212,106790.0,106780.0,0.89976218]
[1751296835844,0.86917212,106790.0,106780.0,0.99244649]
[1751296836046,1.24917212,106790.0,106780.0,0.99240649]
[1751296836247,1.24917212,106790.0,106780.0,0.89972218]
[1751296837139,1.24917212,106790.0,106780.0,0.99240649]
[1751296837650,1.24917212,106790.0,106780.0,0.9610695]
[1751296837839,1.24917212,106790.0,106780.0,1.06473208]
[1751296838545,1.24917212,106790.0,106780.0,0.97204777]
[1751296838942,1.24917212,106790.0,106780.0,1.06473208]
[1751296840350,0.5480383,106790.0,106780.0,1.06473208]
[1751296840550,1.24917212,106790.0,106780.0,0.31869208]
[1751296840850,1.24917212,106790.0,106780.0,1.06461208]
[1751296841049,0.86917212,106790.0,106780.0,1.06461208]
[1751296841843,0.86917212,106790.0,106780.0,0.97192777]
[1751296843147,1.19917212,106790.0,106780.0,0.97192777]
[1751296843353,1.21917212,106790.0,106780.0,0.97192777]
[1751296844342,1.26937212,106790.0,106780.0,0.22600777]
[1751296844542,1.27937212,106790.0,106780.0,0.95685007]
[1751296844745,1.27937212,106790.0,106780.0,1.04627411]
[1751296845051,1.27937212,106790.0,106780.0,1.04627559]
[1751296845246,0.91937212,106790.0,106780.0,0.97148761]
[1751296845443,1.27937212,106790.0,106780.0,1.13896144]
[1751296845642,1.27937212,106790.0,106780.0,1.04627713]
[1751296846151,1.27937212,106790.0,106780.0,0.97148761]
[1751296846341,0.91937212,106790.0,106780.0,0.97148761]
[1751296846552,0.91857212,106790.0,106780.0,0.97148761]
[1751296846851,1.22917212,106790.0,106780.0,0.97148761]
[1751296847046,0.5480383,106790.0,106780.0,0.97148761]
[1751296847251,0.50837212,106790.0,106780.0,0.97148761]
[1751296847548,0.1872383,106790.0,106780.0,2.07821858]
[1751296847745,0.1872383,106790.0,106780.0,2.26547438]
[1751296847942,0.13103473,106790.0,106780.0,2.19067723]
[1751296848147,0.2808526,106800.0,106790.0,0.1872383]
[1751296848338,0.1872208,106800.0,106790.0,1.62440546]
[1751296848539,0.1872208,106800.0,106790.0,1.82831643]
[1751296849242,0.0467991,106820.0,106800.0,0.60195822]
[1751296849446,0.2340198,106810.0,106800.0,1.40188885]
[1751296849646,0.1872166,106810.0,106800.0,2.22196693]
[1751296849848,0.1872166,106810.0,106800.0,1.90083311]
[1751296850050,0.1872166,106810.0,106800.0,2.17516173]
[1751296850250,0.2808001,106820.0,106810.0,0.1872032]
[1751296850446,0.2808001,106820.0,106810.0,1.08146245]
[1751296850646,0.2808001,106820.0,106810.0,0.92066245]
[1751296850850,0.2808001,106820.0,106810.0,1.0121607]
[1751296851050,0.2808001,106820.0,106810.0,1.05182688]
[1751296851950,0.2808001,106820.0,106810.0,1.06121943]
[1751296853449,0.2828001,106820.0,106810.0,1.06121943]
[1751296853749,0.236001,106820.0,106810.0,2.09137943]
[1751296854051,0.236001,106820.0,106810.0,2.41251325]
[1751296855451,0.002,106820.0,106810.0,2.41251325]
[1751296855654,0.1871803,106830.0,106820.0,0.1871857]
[1751296855847,0.1871803,106830.0,106820.0,2.10115391]
[1751296856554,0.1871803,106830.0,106820.0,2.1183463]
[1751296857053,0.140373,106840.0,106820.0,2.27670255]
[1751296857353,0.3275236,106840.0,106830.0,0.60393451]
[1751296857547,0.3275236,106840.0,106830.0,1.02625994]
[1751296857750,0.3275236,106840.0,106830.0,1.05625994]
[1751296857945,0.64865742,106840.0,106830.0,0.12829184]
[1751296858159,0.64865742,106840.0,106830.0,0.67545994]
[1751296858348,0.2807322,106840.0,106830.0,0.66448167]
[1751296858551,0.2807322,106840.0,106830.0,0.67545334]
[1751296858862,0.2817133,106850.0,106840.0,0.1871506]
[1751296859154,0.2349273,106850.0,106840.0,1.8300863]
[1751296859549,0.2349273,106850.0,106840.0,1.79279075]
[1751296860056,0.55606112,106850.0,106840.0,1.24484015]
[1751296860264,0.55606112,106850.0,106840.0,1.05199075]
[1751296860448,0.55606112,106850.0,106840.0,0.51719396]
[1751296860649,1.06066112,106850.0,106840.0,0.90199396]
[1751296860849,1.01156112,106850.0,106840.0,1.40914456]
[1751296861157,0.65076112,106850.0,106840.0,1.40914456]
[1751296861547,0.3296273,106850.0,106840.0,1.40914456]
[1751296861746,0.2826273,106850.0,106840.0,1.76994456]
[1751296861961,0.1881439,106850.0,106840.0,2.09107838]
[1751296862454,0.1881439,106850.0,106840.0,1.76994456]
[1751296863759,0.1881439,106850.0,106840.0,1.81654456]
[1751296863962,0.50927772,106850.0,106840.0,1.81654456]
[1751296864155,0.60037772,106850.0,106840.0,1.45574456]
[1751296864354,0.2792439,106850.0,106840.0,1.81654456]
[1751296864661,0.2349439,106850.0,106840.0,1.81654456]
[1751296864960,0.2349439,106850.0,106840.0,1.86244456]
[1751296865258,0.2349439,106850.0,106840.0,1.82277838]
[1751296865461,0.2349439,106850.0,106840.0,1.86244456]
[1751296866261,0.2349439,106850.0,106840.0,1.46437075]
[1751296866456,0.2349439,106850.0,106840.0,1.50157598]
[1751296866658,0.2349439,106850.0,106840.0,1.46437075]
[1751296866857,0.2349439,106850.0,106840.0,1.46435728]
[1751296867157,0.2419439,106850.0,106840.0,1.4083329]
[1751296867460,0.2419439,106850.0,106840.0,1.76913361]
[1751296868060,0.2419439,106850.0,106840.0,1.82918852]
[1751296868256,0.2419439,106850.0,106840.0,1.48293986]
[1751296868564,0.2419439,106850.0,106840.0,1.76911588]
[1751296869061,0.2419439,106850.0,106840.0,1.84373776]
[1751296869261,0.2419439,106850.0,106840.0,2.20957158]
[1751296870158,0.2419439,106850.0,106840.0,2.22054239]
[1751296870563,0.2419439,106850.0,106840.0,2.20957158]
[1751296871066,0.2419439,106850.0,106840.0,2.22054257]
[1751296872256,0.2419439,106850.0,106840.0,1.85974257]
[1751296872565,0.2419439,106850.0,106840.0,2.22054257]
[1751296875569,0.2877439,106850.0,106840.0,2.12804257]
[1751296875978,0.2877439,106850.0,106840.0,2.05342069]
[1751296876465,0.2877439,106850.0,106840.0,2.10032069]
[1751296876673,0.2419439,106850.0,106840.0,2.10032069]
[1751296876972,0.2419439,106850.0,106840.0,2.14452069]
[1751296877156,0.2419439,106850.0,106840.0,2.21914257]
[1751296877357,0.1951439,106850.0,106840.0,2.21914257]
[1751296878069,0.008,106850.0,106840.0,2.21914257]
[1751296878266,0.0066971,106850.0,106840.0,2.82003836]
[1751296878464,0.0066971,106850.0,106840.0,2.72734603]
[1751296878866,0.0066971,106850.0,106840.0,2.65283851]
[1751296879667,0.0066971,106850.0,106840.0,2.74552282]
[1751296879868,0.187113,106870.0,106860.0,0.1871155]
[1751296880072,0.4696229,106880.0,106870.0,0.187098]
[1751296880270,0.0940088,106880.0,106870.0,1.32114064]
[1751296880474,0.0009088,106880.0,106870.0,2.15802064]
[1751296880772,0.1879893,106880.0,106870.0,2.1434714]
[1751296881169,0.1879893,106880.0,106870.0,2.15751523]
[1751296881366,0.1879893,106880.0,106870.0,1.83638141]
[1751296881565,0.2009893,106880.0,106870.0,2.15851523]
[1751296881970,0.2009893,106880.0,106870.0,2.15852455]
[1751296882171,0.2009893,106880.0,106870.0,2.1444714]
[1751296882374,0.2009893,106880.0,106870.0,2.15851761]
[1751296882573,0.2009893,106880.0,106870.0,2.15851708]
[1751296882772,0.2009893,106880.0,106870.0,2.1678322]
[1751296882973,0.0139088,106880.0,106870.0,2.1678322]
[1751296883277,0.3289395,106890.0,106880.0,0.1870805]
[1751296883469,0.3289395,106890.0,106880.0,1.06136909]
[1751296883671,0.3289395,106890.0,106880.0,1.04136909]
[1751296883872,0.3289395,106890.0,106880.0,1.04136478]
[1751296884073,0.2807395,106890.0,106880.0,1.3624986]
[1751296884275,0.2807395,106890.0,106880.0,1.50268291]
[1751296884777,0.2807395,106890.0,106880.0,1.54268291]
[1751296884974,0.3356395,106890.0,106880.0,1.19268291]
[1751296885176,0.3356395,106890.0,106880.0,0.51074909]
[1751296885877,0.3356395,106890.0,106880.0,0.83188291]
[1751296886078,0.3356395,106890.0,106880.0,1.48268291]
[1751296886484,0.194072,106890.0,106880.0,1.48268291]
[1751296886672,0.007,106890.0,106880.0,1.48268291]
[1751296886870,0.194063,106890.0,106880.0,1.3899986]
[1751296887065,0.007,106890.0,106880.0,1.48314193]
[1751296887376,0.194063,106890.0,106880.0,1.48311708]
[1751296887874,0.194063,106890.0,106880.0,1.12231708]
[1751296888078,0.194063,106890.0,106880.0,1.48311708]
[1751296888279,0.194063,106890.0,106880.0,1.23726715]
[1751296888479,0.241563,106890.0,106880.0,1.55840097]
[1751296888874,0.241563,106890.0,106880.0,1.54435529]
[1751296889377,0.241563,106890.0,106880.0,1.46534023]
[1751296890084,0.241563,106890.0,106880.0,1.55843431]
[1751296890982,0.0545,106890.0,106880.0,1.55843431]
[1751296891182,0.007,106890.0,106880.0,1.55843431]
[1751296891382,0.194063,106890.0,106880.0,1.55841371]
[1751296892474,0.194063,106890.0,106880.0,1.46534023]
[1751296893279,0.194063,106890.0,106880.0,1.5884108]
[1751296894481,0.194063,106890.0,106880.0,1.2384108]
[1751296894780,0.194063,106890.0,106880.0,0.96727698]
[1751296894984,0.194063,106890.0,106880.0,1.2884108]
[1751296895175,0.242763,106890.0,106880.0,0.9276108]
[1751296895374,0.242763,106890.0,106880.0,1.20593698]
[1751296895583,0.60879682,106890.0,106880.0,1.20593698]
[1751296895883,0.60879682,106890.0,106880.0,1.48593698]
[1751296896083,0.287663,106890.0,106880.0,1.75366641]
[1751296896281,0.287663,106890.0,106880.0,1.84673698]
[1751296896485,0.287663,106890.0,106880.0,1.8829708]
[1751296896779,0.242763,106890.0,106880.0,2.2717708]
[1751296897183,0.242763,106890.0,106880.0,1.9786308]
[1751296897485,0.23561475,106890.0,106880.0,2.3586308]
[1751296898383,0.23561475,106890.0,106880.0,1.67669698]
[1751296899084,0.284763,106890.0,106880.0,0.41257698]
[1751296899281,0.60589682,106890.0,106880.0,1.52589698]
[1751296899780,0.60589682,106890.0,106880.0,1.16589698]
[1751296901379,0.97669682,106890.0,106880.0,0.96012796]
[1751296901974,0.97669682,106890.0,106880.0,0.97869648]
[1751296902594,0.97669682,106890.0,106880.0,0.90337259]
[1751296903080,0.97669682,106890.0,106880.0,1.09045309]
[1751296903880,0.97669682,106890.0,106880.0,1.08045309]
[1751296904378,0.97669682,106890.0,106880.0,1.06193192]
[1751296904579,0.97669682,106890.0,106880.0,0.87485142]
[1751296905084,0.97669682,106890.0,106880.0,1.06193192]
[1751296905282,0.97669682,106890.0,106880.0,0.98738252]
[1751296905482,0.97669682,106890.0,106880.0,1.06193192]
[1751296905680,0.655563,106890.0,106880.0,1.06193192]
[1751296906189,0.655563,106890.0,106880.0,0.98738252]
[1751296906585,0.655563,106890.0,106880.0,1.06193192]
[1751296906790,0.655563,106890.0,106880.0,0.9878055]
[1751296907086,0.655563,106890.0,106880.0,1.06320408]
[1751296907487,0.655563,106890.0,106880.0,1.13775348]
[1751296907882,0.97669682,106890.0,106880.0,1.13775348]
[1751296908888,0.61589682,106890.0,106880.0,1.13775348]
[1751296909089,0.61589682,106890.0,106880.0,1.06320408]
[1751296909383,0.97669682,106890.0,106880.0,1.06320408]
[1751296909587,0.61589682,106890.0,106880.0,1.13793012]
[1751296909783,0.61589682,106890.0,106880.0,1.15793012]
[1751296910190,0.61589682,106890.0,106880.0,1.13793012]
[1751296910381,0.61589682,106890.0,106880.0,0.87612358]
[1751296910578,0.97669682,106890.0,106880.0,0.37259415]
[1751296910777,0.97669682,106890.0,106880.0,0.96899415]
[1751296910987,0.97669682,106890.0,106880.0,1.15607465]
[1751296911281,0.97669682,106890.0,106880.0,1.15571465]
[1751296911477,0.97669682,106890.0,106880.0,0.96863415]
[1751296912484,0.92054231,106890.0,106880.0,0.96863415]
[1751296913087,0.91054231,106890.0,106880.0,0.87492821]
[1751296913290,1.23054231,106890.0,106880.0,0.89315557]
[1751296913487,1.23054231,106890.0,106880.0,0.29683557]
[1751296913980,1.23054231,106890.0,106880.0,0.8748539]
[1751296914189,1.23054231,106890.0,106880.0,0.86388722]
[1751296914693,1.73054231,106890.0,106880.0,0.86388722]
[1751296915794,1.77764231,106890.0,106880.0,0.86388722]
[1751296916190,1.77764231,106890.0,106880.0,0.84936082]
[1751296916500,2.53589613,106890.0,106880.0,0.22276741]
[1751296916690,2.53589613,106890.0,106880.0,0.14865871]
[1751296916892,0.1870805,106880.0,106870.0,0.1462]
[1751296917195,0.187098,106870.0,106860.0,0.25589359]
[1751296917494,1.24613182,106870.0,106860.0,0.85213359]
[1751296917696,1.24613182,106870.0,106860.0,0.75906302]
[1751296918195,1.24613182,106870.0,106860.0,0.7424]
[1751296918495,1.24613182,106870.0,106860.0,0.1462]
[1751296918695,1.24613182,106870.0,106860.0,0.7424]
[1751296918894,1.24613182,106870.0,106860.0,0.1462]
[1751296919095,1.24613182,106870.0,106860.0,0.7424]
[1751296919499,1.24613182,106870.0,106860.0,0.79842525]
[1751296920488,1.74613182,106870.0,106860.0,0.79842525]
[1751296920690,1.74613182,106870.0,106860.0,0.83576254]
[1751296921194,1.74613182,106870.0,106860.0,0.83776254]
[1751296921999,1.74613182,106870.0,106860.0,0.85776254]
[1751296922194,1.74613182,106870.0,106860.0,0.83776254]
[1751296923000,1.74613182,106870.0,106860.0,0.03933729]
[1751296923302,1.93328382,106870.0,106860.0,0.66343533]
[1751296925300,1.93328382,106870.0,106860.0,0.06731533]
[1751296926096,1.61215,106870.0,106860.0,0.06731533]
[1751296926297,1.93328382,106870.0,106860.0,0.06731533]
[1751296926900,1.74613182,106870.0,106860.0,0.06731533]
[1751296927096,1.74613182,106870.0,106860.0,0.08731533]
[1751296927302,0.797098,106870.0,106860.0,0.39947804]
[1751296927501,0.797098,106870.0,106860.0,1.00224254]
[1751296927694,1.11823182,106870.0,106860.0,1.18935804]
[1751296928095,1.11823182,106870.0,106860.0,1.00224254]
[1751296928291,0.61823182,106870.0,106860.0,1.00224254]
[1751296928491,0.61823182,106870.0,106860.0,1.03116323]
[1751296928903,0.61823182,106870.0,106860.0,1.02578912]
[1751296929600,0.97903182,106870.0,106860.0,1.02578912]
[1751296929905,1.26503182,106870.0,106860.0,0.13890912]
[1751296930098,1.26503182,106870.0,106860.0,0.28514912]
[1751296930099,1.76503182,106870.0,106860.0,0.28514912]
[1751296930401,1.76503182,106870.0,106860.0,0.82508387]
[1751296930602,1.76503182,106870.0,106860.0,0.85304924]
[1751296931703,1.76503182,106870.0,106860.0,0.25708924]
[1751296931906,1.76503182,106870.0,106860.0,0.85304924]
[1751296932503,1.76503182,106870.0,106860.0,0.82508387]
[1751296933902,1.81423182,106870.0,106860.0,0.82508387]
[1751296936106,1.81423182,106870.0,106860.0,0.85305635]
[1751296936498,1.81423182,106870.0,106860.0,0.82508387]
[1751296937104,1.81423182,106870.0,106860.0,0.67864387]
[1751296937306,1.81423182,106870.0,106860.0,0.70661967]
[1751296937498,1.81423182,106870.0,106860.0,0.67864387]
[1751296938505,1.81423182,106870.0,106860.0,0.78046912]
[1751296940998,1.81423182,106870.0,106860.0,0.13890912]
[1751296941203,1.81423182,106870.0,106860.0,0.04804917]
[1751296942209,1.81423182,106870.0,106860.0,0.10407442]
[1751296942597,1.72713382,106870.0,106850.0,0.07456897]
[1751296942904,1.00644932,106860.0,106850.0,0.78453168]
[1751296943210,1.35644932,106860.0,106850.0,0.18893168]
[1751296943505,1.35644932,106860.0,106850.0,0.85906065]
[1751296943698,1.35644932,106860.0,106850.0,0.18893168]
[1751296944102,1.35644932,106860.0,106850.0,0.19293168]
[1751296945102,1.85644932,106860.0,106850.0,0.19293168]
[1751296945500,1.76614932,106860.0,106850.0,0.19293168]
[1751296945809,1.3979155,106860.0,106850.0,0.28923168]
[1751296946004,1.0479155,106860.0,106850.0,0.28923168]
[1751296946203,1.36904932,106860.0,106850.0,0.32923168]
[1751296946400,0.6871155,106860.0,106850.0,1.03140468]
[1751296946601,0.1871155,106860.0,106850.0,2.16834747]
[1751296946911,0.1871155,106860.0,106850.0,1.84721365]
[1751296947909,0.1871155,106860.0,106850.0,1.85841991]
[1751296948111,0.1871155,106860.0,106850.0,1.78361451]
[1751296948309,0.1871155,106860.0,106850.0,2.10474833]
[1751296949715,0.1871155,106860.0,106850.0,1.79824095]
[1751296950814,0.1871155,106860.0,106850.0,1.78361252]
[1751296951214,0.1871155,106860.0,106850.0,1.85841792]
[1751296951406,0.1871155,106860.0,106850.0,2.17955174]
[1751296953314,0.1871155,106860.0,106850.0,1.87668309]
[1751296953515,0.1871155,106860.0,106850.0,1.87648309]
[1751296954018,0.1871155,106860.0,106850.0,1.97058052]
[1751296954218,0.1871155,106860.0,106850.0,2.04537115]
[1751296954813,0.1871155,106860.0,106850.0,2.05994445]
[1751296955213,0.1871155,106860.0,106850.0,2.05994119]
[1751296955410,0.1871155,106860.0,106850.0,2.07822439]
[1751296956002,0.50824542,106870.0,106860.0,0.1871154]
[1751296956213,0.1871116,106870.0,106860.0,1.12681183]
[1751296956417,0.1871116,106870.0,106860.0,1.44794565]
[1751296957016,0.1871116,106870.0,106860.0,1.15794565]
[1751296957213,0.1871116,106870.0,106860.0,1.46778993]
[1751296957414,0.1871116,106870.0,106860.0,1.46878993]
[1751296957713,0.1871116,106870.0,106860.0,1.16426099]
[1751296958018,0.1871116,106870.0,106860.0,0.85426099]
[1751296958218,0.1871116,106870.0,106860.0,0.87329241]
[1751296958415,0.50824542,106870.0,106860.0,0.87329241]
[1751296959219,0.50824542,106870.0,106860.0,0.84329241]
[1751296959820,0.50824542,106870.0,106860.0,1.19329241]
[1751296960019,0.50824542,106870.0,106860.0,0.86426164]
[1751296960319,0.50824542,106870.0,106860.0,0.85329162]
[1751296960714,0.50824542,106870.0,106860.0,0.84329162]
[1751296961017,0.50824542,106870.0,106860.0,0.85329162]
[1751296961520,0.50824542,106870.0,106860.0,1.17329162]
[1751296961912,0.1870979,106870.0,106860.0,1.32458844]
[1751296962110,0.1870979,106870.0,106860.0,1.64572226]
[1751296962417,0.64854662,106880.0,106870.0,0.1870979]
[1751296962618,0.69854662,106880.0,106870.0,1.52444963]
[1751296962914,0.2806389,106880.0,106870.0,1.86444963]
[1751296963106,0.2806389,106880.0,106870.0,1.52444963]
[1751296963310,0.46143832,106890.0,106870.0,1.32735173]
[1751296963505,1.01851632,106890.0,106880.0,0.76302575]
[1751296963717,0.6973825,106890.0,106880.0,0.811569]
[1751296963917,1.01851632,106890.0,106880.0,0.811569]
[1751296964315,0.3606132,106890.0,106880.0,0.811569]
[1751296964513,0.2806132,106890.0,106880.0,0.811569]
[1751296964713,0.60174702,106890.0,106880.0,0.811569]
[1751296965418,0.55497862,106890.0,106880.0,0.811569]
[1751296965721,0.55497862,106890.0,106880.0,0.82076723]
[1751296966917,0.2338448,106890.0,106880.0,1.21406638]
[1751296967117,0.2348448,106890.0,106880.0,1.21406638]
[1751296967313,0.188078,106890.0,106880.0,1.21406638]
[1751296968024,0.001,106890.0,106880.0,1.21406638]
[1751296968422,0.001,106890.0,106880.0,1.46045495]
[1751296968624,0.001,106890.0,106880.0,1.55352552]
[1751296970926,0.001,106890.0,106880.0,1.56807169]
[1751296971320,0.001,106890.0,106880.0,1.48596629]
[1751296973027,0.001,106890.0,106880.0,1.47142012]
[1751296974424,0.001,106890.0,106880.0,1.56449069]
[1751296975130,0.187046,106900.0,106890.0,0.187063]
[1751296975330,0.187046,106900.0,106890.0,2.14772578]
[1751296975727,0.187046,106900.0,106890.0,1.82659196]
[1751296976542,0.2412789,106910.0,106900.0,0.1870455]
[1751296976744,0.74945622,106910.0,106900.0,0.7370861]
[1751296977042,0.74945622,106910.0,106900.0,0.7470861]
[1751296977638,0.74945622,106910.0,106900.0,0.70985432]
[1751296978141,0.70269502,106910.0,106900.0,0.70985432]
[1751296978339,0.3815612,106910.0,106900.0,0.70985432]
[1751296979043,0.70269502,106910.0,106900.0,1.02219973]
[1751296979435,0.65593522,106910.0,106900.0,1.01123503]
[1751296979636,0.65593522,106910.0,106900.0,1.0670827]
[1751296979933,0.65593522,106910.0,106900.0,0.70985432]
[1751296983444,0.65593522,106910.0,106900.0,0.65400665]
[1751296983738,0.65593522,106910.0,106900.0,1.02400665]
[1751296983945,0.001,106910.0,106900.0,1.34514047]
[1751296984144,0.188028,106910.0,106900.0,1.52030618]
[1751296984332,0.2805103,106930.0,106920.0,0.1870105]
[1751296984644,0.60164412,106930.0,106920.0,0.71150847]
[1751296984834,1.44670948,106930.0,106920.0,0.23889762]
[1751296985037,1.44670948,106930.0,106920.0,0.83305762]
[1751296985231,1.12557566,106930.0,106920.0,0.83305762]
[1751296985538,2.7048913,106930.0,106920.0,0.86098143]
[1751296985842,0.1870105,106920.0,106910.0,1.04320691]
[1751296986043,1.65787814,106920.0,106910.0,1.63732691]
[1751296986638,1.0156105,106920.0,106910.0,1.58148]
[1751296986944,1.65787814,106920.0,106910.0,1.58148]
[1751296987446,1.0156105,106920.0,106910.0,1.43628]
[1751296987642,1.33674432,106920.0,106910.0,1.43628]
[1751296988146,1.83674432,106920.0,106910.0,1.43628]
[1751296989748,2.15787814,106920.0,106910.0,1.43628]
[1751296990250,1.83674432,106920.0,106910.0,1.43628]
[1751296990450,1.83674432,106920.0,106910.0,1.49212691]
[1751296990849,2.15787814,106920.0,106910.0,1.49212691]
[1751296991048,2.15787814,106920.0,106910.0,1.43628]
[1751296991249,2.15787814,106920.0,106910.0,1.49212691]
[1751296991449,2.15787814,106920.0,106910.0,0.89800691]
[1751296991650,2.15787814,106920.0,106910.0,1.49200691]
[1751296992554,0.187028,106910.0,106900.0,0.23638361]
[1751296992746,1.33256182,106910.0,106900.0,0.84440688]
[1751296993153,1.33256182,106910.0,106900.0,0.76994117]
[1751296993645,1.83256182,106910.0,106900.0,0.01406327]
[1751296993846,1.83256182,106910.0,106900.0,0.60798327]
[1751296994946,2.01964182,106910.0,106900.0,0.60798327]
[1751296995157,2.01964182,106910.0,106880.0,0.07446571]
[1751296995158,0.187063,106890.0,106880.0,0.07446571]
[1751296995358,0.86899682,106890.0,106880.0,0.82451261]
[1751296995549,0.97229682,106890.0,106880.0,0.82451261]
[1751296995749,0.97229682,106890.0,106880.0,1.01159311]
[1751296996046,0.1892922,106900.0,106880.0,1.51269621]
[1751296996250,0.1892922,106900.0,106890.0,0.63286253]
[1751296996251,0.1870455,106900.0,106890.0,0.63286253]
[1751296996550,0.1870455,106900.0,106890.0,1.47462943]
[1751296996745,0.3318595,106910.0,106900.0,0.1870455]
[1751296996947,0.2805595,106910.0,106900.0,1.83050015]
[1751296997452,0.2805595,106910.0,106900.0,1.46050015]
[1751296999155,0.60169332,106910.0,106900.0,1.46050015]
[1751296999849,0.60169332,106910.0,106900.0,1.09970015]
[1751297000258,0.60169332,106910.0,106900.0,0.91265465]
[1751297000862,0.65419332,106910.0,106900.0,0.86365465]
[1751297001159,0.70709332,106910.0,106900.0,0.86357465]
[1751297001460,0.1870455,106900.0,106890.0,0.18915355]
[1751297001660,0.56067932,106900.0,106890.0,1.17610075]
[1751297001858,0.50817932,106900.0,106890.0,1.89690075]
[1751297002053,0.1870455,106900.0,106890.0,1.15838075]
[1751297002258,0.1870455,106900.0,106890.0,1.8968751]
[1751297002757,0.1870455,106900.0,106890.0,1.8241461]
[1751297003464,0.1870455,106900.0,106890.0,2.14527992]
[1751297004158,0.1870455,106900.0,106890.0,1.8241461]
[1751297005061,0.1870455,106900.0,106890.0,1.91721667]
[1751297005859,0.50817932,106900.0,106890.0,1.91717667]
[1751297006560,0.50817932,106900.0,106890.0,1.8241061]
[1751297006756,0.50817932,106900.0,106890.0,1.4641061]
[1751297006964,0.50817932,106900.0,106890.0,1.4741061]
[1751297007162,0.50817932,106900.0,106890.0,1.1132661]
[1751297007461,0.55477932,106900.0,106890.0,1.54206002]
[1751297007762,0.55477932,106900.0,106890.0,1.19206002]
[1751297007965,0.55477932,106900.0,106890.0,1.55206002]
[1751297008162,0.55477932,106900.0,106890.0,1.89879939]
[1751297008361,0.55477932,106900.0,106890.0,1.17799939]
[1751297008664,0.55477932,106900.0,106890.0,1.17493857]
[1751297009161,0.2336455,106900.0,106890.0,1.17493857]
[1751297009362,0.55477932,106900.0,106890.0,1.55493857]
[1751297010058,0.55477932,106900.0,106890.0,1.91573857]
[1751297010364,0.1870455,106900.0,106890.0,1.91999777]
[1751297011763,0.1870455,106900.0,106890.0,1.93405696]
[1751297011961,0.1870455,106900.0,106890.0,2.25519078]
[1751297012563,0.1870455,106900.0,106890.0,1.93405696]
[1751297015569,0.50817932,106900.0,106890.0,1.93405696]
[1751297016765,0.50817932,106900.0,106890.0,1.84098639]
[1751297018569,0.50817932,106900.0,106890.0,1.93405696]
[1751297018764,0.50817932,106900.0,106890.0,1.93421185]
[1751297018964,0.50817932,106900.0,106890.0,1.48034128]
[1751297019161,0.55547932,106900.0,106890.0,1.55510573]
[1751297019468,0.55547932,106900.0,106890.0,1.55474573]
[1751297020659,0.50817932,106900.0,106890.0,1.84078128]